bitfinex-derivatives/quotes_BNBF0:USTF0_20250424
["timestamp","ask_amount","ask_price","bid_price","bid_amount"]
[1745481508193,0.28840655,603.86,603.02,6.82]
[1745481508581,1.25125164,604.25,603.02,6.82]
[1745481509785,0.28846154,604.24,603.02,6.82]
[1745481510885,1.25125164,604.4,603.02,6.82]
[1745481511082,0.28844361,604.23,603.02,6.82]
[1745481511282,1.25125164,604.4,603.02,6.82]
[1745481512187,0.28844361,604.39,603.02,6.82]
[1745481513789,1.25125164,604.4,603.02,6.82]
[1745481514089,1.25125164,604.39,603.02,6.82]
[1745481515289,0.2884448,604.38,603.02,6.82]
[1745481516693,1.25125164,604.39,603.02,6.82]
[1745481516991,0.2884448,604.37,603.02,6.82]
[1745481519593,1.25125164,604.4,603.02,6.82]
[1745481519987,0.28844361,604.36,603.02,6.82]
[1745481520187,1.25125164,604.08,603.02,6.82]
[1745481522995,1.25125164,603.94,603.02,6.82]
[1745481525795,1.25125164,603.72,603.02,6.82]
[1745481526196,1.25125164,603.72,602.22,1.0542296]
[1745481526392,1.25125164,603.72,602.23,2.8212036]
[1745481526597,1.25125164,603.72,602.24,1.76500986]
[1745481526795,1.25125164,603.72,602.25,2.8212036]
[1745481526991,1.25125164,603.72,602.26,1.76500986]
[1745481527191,1.25125164,603.72,602.27,1.76500986]
[1745481527392,1.25125164,603.72,602.28,2.8212036]
[1745481527598,1.25125164,603.72,602.29,1.76500986]
[1745481527797,1.25125164,603.72,602.3,1.76500986]
[1745481527998,1.25125164,603.85,602.31,1.76500986]
[1745481528199,1.25125164,603.85,602.32,2.8212036]
[1745481528396,1.25125164,603.85,602.33,1.76500986]
[1745481528599,1.25125164,603.85,602.34,1.76500986]
[1745481528895,1.25125164,603.85,602.35,1.76500986]
[1745481529098,0.28858593,603.84,602.36,1.76500986]
[1745481529301,0.28858593,603.84,602.37,2.8212036]
[1745481529598,0.28858593,603.84,602.38,1.76501822]
[1745481529800,0.28858593,603.84,602.39,1.76501822]
[1745481529996,0.28858593,603.84,602.4,2.82121196]
[1745481530199,0.28858593,603.84,602.41,1.46025496]
[1745481530402,0.28858593,603.84,602.42,1.46025496]
[1745481530702,0.28858593,603.84,602.43,2.5164487]
[1745481530896,0.28858593,603.84,602.44,1.46025496]
[1745481531097,0.28858593,603.84,602.45,2.5164487]
[1745481531297,0.28858593,603.84,602.46,1.46024133]
[1745481531503,0.28858593,603.84,602.47,1.46024133]
[1745481531803,1.25125164,603.9,602.48,1.46024133]
[1745481532098,0.28856439,603.83,602.49,1.46024133]
[1745481532303,0.28856439,603.83,602.5,1.46024133]
[1745481532501,0.28856439,603.83,602.51,1.46024133]
[1745481532703,0.28856439,603.83,602.52,1.46024133]
[1745481532899,0.28856439,603.83,602.53,1.46024133]
[1745481533096,0.28856439,603.83,602.54,0.85114569]
[1745481533300,0.28856439,603.83,602.55,1.46029476]
[1745481533501,0.28856439,603.83,602.56,2.5164885]
[1745481533698,0.28856439,603.83,602.57,2.5164885]
[1745481533897,0.28856439,603.83,602.58,1.46029476]
[1745481534098,0.28856439,603.83,602.59,1.46029476]
[1745481534302,0.28856439,603.83,602.6,2.5164885]
[1745481534500,0.28856439,603.83,602.61,1.46029476]
[1745481534700,0.28856439,603.83,602.62,1.46029476]
[1745481534904,1.25125164,603.89,602.63,1.46029476]
[1745481535102,1.25125164,603.89,602.64,1.46029476]
[1745481535302,1.25125164,603.89,602.65,2.5164885]
[1745481535509,1.25125164,603.89,602.66,1.46029476]
[1745481535808,1.25125164,604.0,602.67,1.46029476]
[1745481536011,1.25125164,604.0,602.68,1.46029476]
[1745481536207,0.28854286,603.88,602.69,1.46029476]
[1745481536509,1.25125164,604.0,602.7,1.46029476]
[1745481536704,1.25125164,604.0,602.71,2.5164885]
[1745481536908,1.25125164,604.0,602.72,1.46054608]
[1745481537109,1.25125164,604.0,602.73,2.51673982]
[1745481537407,1.25125164,604.0,602.74,1.46054608]
[1745481537606,1.25125164,604.0,602.75,1.46058939]
[1745481537911,1.25125164,603.94,602.76,0.8513234]
[1745481538110,1.25125164,603.94,602.77,1.05619374]
[1745481538309,1.25125164,603.94,602.78,0.8513234]
[1745481538610,1.25125164,603.94,602.79,1.05619374]
[1745481539109,1.25125164,603.94,602.8,1.05619374]
[1745481539609,1.25125164,603.94,602.81,1.05619374]
[1745481539810,1.25125164,603.9,602.81,1.05619374]
[1745481540205,1.25125164,603.9,602.82,1.05619374]
[1745481540605,1.25125164,603.9,602.83,1.05619374]
[1745481541606,1.25125164,603.9,602.84,1.05619374]
[1745481541906,1.25125164,603.9,602.85,1.05619374]
[1745481542307,1.25125164,603.9,602.86,1.05619374]
[1745481542510,1.25125164,603.9,602.87,1.05619374]
[1745481542808,1.25125164,603.88,602.87,1.05619374]
[1745481543012,1.25125164,603.88,602.88,1.05619374]
[1745481543312,1.25125164,603.88,602.39,1.848]
[1745481543508,1.25125164,603.88,602.4,1.76595636]
[1745481543713,1.25125164,603.88,602.41,1.766055]
[1745481543912,1.25125164,603.88,602.42,1.46130718]
[1745481544110,1.25125164,603.88,602.43,1.46130718]
[1745481544309,1.25125164,603.88,602.44,2.51828848]
[1745481544607,1.25125164,603.88,602.45,2.51828848]
[1745481544807,1.25125164,603.88,602.46,1.46130718]
[1745481545008,1.25125164,604.25,602.47,2.51828848]
[1745481545308,1.25125164,604.25,602.48,1.46130718]
[1745481545511,1.25125164,604.25,602.49,1.46132219]
[1745481545712,1.25125164,604.25,602.5,2.51830349]
[1745481545910,1.25125164,604.25,602.51,1.46132219]
[1745481546212,1.25125164,604.25,602.52,2.51830349]
[1745481546405,1.25125164,604.25,602.53,2.51830349]
[1745481546611,1.25125164,604.25,602.54,1.46132219]
[1745481546808,1.25125164,604.25,602.55,1.46132219]
[1745481547010,1.25125164,604.25,602.56,2.51830349]
[1745481547213,1.25125164,604.25,602.57,1.46132219]
[1745481547412,1.25125164,604.25,602.58,1.46132219]
[1745481547712,1.25125164,604.25,602.59,2.51830349]
[1745481547913,1.25125164,604.25,602.6,1.46132219]
[1745481548209,1.25125164,604.49,602.61,2.51830349]
[1745481548413,1.25125164,604.49,602.62,1.46132219]
[1745481548607,1.25125164,604.49,602.63,1.46132219]
[1745481548807,1.25125164,604.49,602.64,2.51830349]
[1745481549108,1.25125164,604.49,602.65,1.46132219]
[1745481549309,1.25125164,604.49,602.66,1.46132219]
[1745481549511,1.25125164,604.49,602.67,1.46132219]
[1745481549708,1.25125164,604.49,602.68,1.46132219]
[1745481549912,1.25125164,604.49,602.69,1.46132219]
[1745481550116,1.25125164,604.21,602.7,2.51830349]
[1745481550413,1.25125164,604.21,602.71,1.46132219]
[1745481550613,1.25125164,604.21,602.72,1.46132219]
[1745481550913,1.25125164,604.21,602.73,1.0569813]
[1745481551115,1.25125164,604.21,602.74,1.46012761]
[1745481551313,1.25125164,604.21,602.75,1.46012761]
[1745481551515,1.25125164,604.21,602.76,2.51710891]
[1745481551715,1.25125164,604.21,602.77,2.51710891]
[1745481552014,1.25125164,604.21,602.78,1.46012761]
[1745481552215,1.25125164,604.21,602.79,1.46012761]
[1745481552410,1.25125164,604.24,602.8,1.46012761]
[1745481552713,1.25125164,604.24,602.81,1.46012761]
[1745481552909,1.25125164,604.24,602.82,1.46012761]
[1745481553113,1.25125164,604.24,602.83,1.46012761]
[1745481553314,1.25125164,604.24,602.84,1.46012761]
[1745481553609,1.25125164,604.24,602.85,2.51710891]
[1745481553810,1.25125164,604.24,602.86,1.46012761]
[1745481554010,1.25125164,604.24,602.87,1.46012761]
[1745481554216,1.25125164,604.1,602.88,0.85104823]
[1745481554415,1.25125164,604.1,602.89,0.85104823]
[1745481554715,1.25125164,604.1,602.9,0.85056793]
[1745481554914,1.25125164,604.1,602.91,0.85056793]
[1745481555115,1.25125164,604.1,602.89,2.8169813]
[1745481555316,1.25125164,604.1,602.92,1.0569813]
[1745481555717,1.25125164,604.1,602.93,1.0569813]
[1745481556117,1.25125164,604.1,602.94,1.0569813]
[1745481556518,1.25125164,604.1,602.95,1.0569813]
[1745481556818,1.25125164,604.17,602.95,1.0569813]
[1745481557418,1.25125164,604.17,602.89,1.76]
[1745481557919,1.25125164,604.17,602.9,1.05532305]
[1745481558215,1.25125164,604.17,602.9,2.72932305]
[1745481558619,1.25125164,604.17,602.91,1.05532305]
[1745481559218,1.25125164,604.17,602.92,1.05532305]
[1745481559721,1.25125164,604.17,602.93,1.05532305]
[1745481559915,1.25125164,604.15,602.93,1.05532305]
[1745481560219,1.25125164,604.15,602.94,1.05532305]
[1745481560422,1.25125164,604.15,602.9,1.674]
[1745481561117,1.25125164,604.15,602.91,1.05513818]
[1745481561320,1.25125164,604.15,602.92,1.05513818]
[1745481561622,1.25125164,604.1,602.92,1.05513818]
[1745481562422,1.25125164,604.1,602.93,1.05513818]
[1745481563122,1.25125164,604.1,602.94,1.05513818]
[1745481563523,1.25125164,604.1,602.9,1.674]
[1745481564023,1.25125164,604.1,602.91,1.05497873]
[1745481564724,1.25125164,604.06,602.91,1.05497873]
[1745481564925,1.25125164,604.06,602.92,1.05497873]
[1745481565123,1.25125164,604.06,602.93,1.05497873]
[1745481565520,1.25125164,604.06,602.9,1.674]
[1745481566126,1.25125164,604.06,602.91,1.05486093]
[1745481566423,1.25125164,604.06,602.92,1.05486093]
[1745481566928,1.25125164,604.06,602.9,1.674]
[1745481567129,1.25125164,603.93,602.9,1.674]
[1745481567324,1.25125164,603.93,602.91,1.05481872]
[1745481567729,1.25125164,603.93,602.92,1.05481872]
[1745481568330,1.25125164,603.93,602.9,1.674]
[1745481568830,1.25125164,603.93,602.91,1.05477126]
[1745481569432,1.25125164,603.93,602.92,1.05477126]
[1745481569733,1.25125164,603.93,602.9,1.674]
[1745481569933,1.25125164,603.92,602.9,1.674]
[1745481570432,1.25125164,603.92,602.91,1.05471966]
[1745481571328,1.25125164,603.92,602.92,1.05471966]
[1745481572035,1.25125164,603.92,602.93,1.05471966]
[1745481572436,1.25125164,603.9,602.93,1.05471966]
[1745481572628,1.25125164,603.9,602.94,1.05471966]
[1745481572934,1.25125164,603.9,602.95,1.05471966]
[1745481573635,1.25125164,603.9,602.9,1.674]
[1745481574432,1.25125164,603.9,602.91,1.05455153]
[1745481574836,1.25125164,603.9,602.92,1.05455153]
[1745481575036,2.12886564,604.94,602.92,1.05455153]
[1745481575037,1.25125164,604.04,602.92,1.05455153]
[1745481575336,1.25125164,604.04,602.92,2.86155153]
[1745481575639,1.25125164,604.04,602.93,1.05455153]
[1745481575834,1.25125164,604.04,602.94,1.05455153]
[1745481576535,1.25125164,604.04,602.95,1.05455153]
[1745481577037,1.25125164,604.04,602.96,1.05455153]
[1745481577437,1.25125164,604.04,602.92,1.807]
[1745481577638,2.12886564,604.93,602.92,1.807]
[1745481577639,1.25125164,604.1,602.92,1.807]
[1745481577842,1.25125164,604.1,602.93,1.05452756]
[1745481578232,1.25125164,604.1,602.94,1.05452756]
[1745481578637,1.25125164,604.1,602.95,1.05452756]
[1745481579135,1.25125164,604.1,602.93,1.05452756]
[1745481579637,1.25125164,604.1,602.94,1.05452756]
[1745481579936,1.25125164,604.1,602.95,1.05452756]
[1745481580134,2.12886564,605.05,602.95,1.05452756]
[1745481580135,1.25125164,604.06,602.95,1.05452756]
[1745481580537,1.25125164,604.06,602.96,1.05452756]
[1745481581238,1.25125164,604.06,602.97,1.05452756]
[1745481581839,1.25125164,604.06,602.92,1.807]
[1745481582339,1.25125164,604.06,602.93,1.05449639]
[1745481582938,1.25125164,604.06,602.94,1.05449639]
[1745481583139,1.25125164,604.03,602.95,1.05449639]
[1745481583739,1.25125164,604.03,602.96,1.05449639]
[1745481584039,1.25125164,604.03,602.97,2.83349639]
[1745481584338,1.25125164,604.03,602.98,1.05449639]
[1745481585238,1.25125164,604.03,602.97,1.779]
[1745481587540,1.25125164,604.03,602.98,1.272]
[1745481589744,1.25125164,604.03,602.99,1.577]
[1745481590245,1.25125164,604.11,602.99,1.577]
[1745481592848,1.25125164,604.09,602.99,1.577]
[1745481596046,1.25125164,604.08,602.99,1.577]
[1745481598349,1.25125164,603.96,602.99,1.577]
[1745481601049,1.25125164,603.96,603.0,1.90692424]
[1745481601252,1.25125164,603.96,603.01,0.8509346]
[1745481601451,1.25125164,603.96,603.02,0.8509346]
[1745481601651,2.12886564,604.94,603.0,1.05598964]
[1745481601652,1.25125164,603.9,603.03,0.85109225]
[1745481601853,1.25125164,603.9,603.0,1.05598964]
[1745481602052,1.25125164,603.9,603.01,1.05598964]
[1745481602553,1.25125164,603.9,603.02,1.05598964]
[1745481602955,1.25125164,603.9,603.03,0.85125001]
[1745481603255,1.25125164,603.9,603.04,0.85125001]
[1745481603449,1.25125164,603.9,603.05,0.85125001]
[1745481603652,1.25125164,603.9,603.06,1.05598964]
[1745481604055,1.25125164,603.9,603.07,1.05598964]
[1745481604648,1.25125164,603.9,603.08,1.05598964]
[1745481604853,1.25125164,603.9,603.09,1.05598964]
[1745481605150,1.25125164,603.9,603.1,1.05598964]
[1745481605550,1.25125164,603.9,603.11,1.05598964]
[1745481606155,1.25125164,603.9,603.12,1.05598964]
[1745481606553,1.25125164,603.9,603.13,1.05598964]
[1745481606857,1.25125164,603.9,603.14,1.05598964]
[1745481607156,1.25125164,603.9,603.15,0.85152099]
[1745481607355,1.25125164,603.9,603.16,1.90724142]
[1745481607559,1.25125164,603.9,603.16,1.05598964]
[1745481607758,1.25125164,603.9,603.17,0.85123172]
[1745481607959,1.25125164,603.9,603.16,1.05598964]
[1745481608158,1.25125164,603.9,603.18,1.05598964]
[1745481608459,1.25125164,603.9,603.19,1.05598964]
[1745481608958,1.25125164,603.9,603.2,1.9069202]
[1745481609155,1.25125164,603.9,603.2,1.05598964]
[1745481609359,1.25125164,603.9,603.21,1.05598964]
[1745481609559,1.25125164,603.9,603.22,1.05598964]
[1745481610359,1.25125164,604.17,603.22,1.05598964]
[1745481610564,1.25125164,604.17,603.18,1.739]
[1745481613465,1.25125164,604.17,603.18,3.272]
[1745481614863,1.25125164,604.24,603.18,4.461]
[1745481616767,1.25125164,604.41,603.18,4.461]
[1745481619471,1.25125164,604.42,603.18,4.461]
[1745481622074,1.25125164,604.29,603.18,4.461]
[1745481624876,1.25125164,604.29,603.18,2.722]
[1745481625175,1.25125164,604.32,603.18,2.722]
[1745481625570,1.25125164,604.32,603.18,1.533]
[1745481627672,1.25125164,604.32,602.17,1.0542296]
[1745481627877,1.25125164,604.32,602.18,2.81760534]
[1745481628078,1.25125164,604.29,602.19,1.76284561]
[1745481628272,1.25125164,604.29,602.2,1.76284561]
[1745481628477,1.25125164,604.29,602.21,1.76284561]
[1745481628772,1.25125164,604.29,602.22,3.38084561]
[1745481628973,1.25125164,604.29,602.23,1.76284561]
[1745481629177,1.25125164,604.29,602.24,2.81760534]
[1745481629378,1.25125164,604.29,602.25,1.76284561]
[1745481629574,1.25125164,604.29,602.26,2.81760534]
[1745481629773,1.25125164,604.29,602.27,1.45821376]
[1745481629977,1.25125164,604.29,602.28,1.76283965]
[1745481630274,2.13103614,605.32,602.28,1.76283965]
[1745481630275,1.25125164,604.27,602.29,1.76283965]
[1745481630478,1.25125164,604.27,602.3,1.76283965]
[1745481630678,1.25125164,604.27,602.31,2.81759938]
[1745481630878,1.25125164,604.27,602.32,1.76283965]
[1745481631074,1.25125164,604.27,602.33,1.76283965]
[1745481631279,1.25125164,604.27,602.34,2.81759938]
[1745481631479,1.25125164,604.27,602.35,1.45821376]
[1745481631683,1.25125164,604.27,602.36,2.81759938]
[1745481631882,1.25125164,604.27,602.37,1.76283965]
[1745481632076,1.25125164,604.27,602.38,2.81759938]
[1745481632277,1.25125164,604.27,602.39,1.76283965]
[1745481632482,1.25125164,604.27,602.4,1.76283965]
[1745481632677,1.25125164,604.27,602.41,1.76283965]
[1745481632878,1.25125164,604.25,602.42,1.76283965]
[1745481633077,1.25125164,604.25,602.43,1.76279813]
[1745481633276,1.25125164,604.25,602.44,2.81755786]
[1745481633581,1.25125164,604.25,602.45,1.76279813]
[1745481633782,1.25125164,604.25,602.46,1.76279813]
[1745481633977,1.25125164,604.25,602.47,1.45821376]
[1745481634180,1.25125164,604.25,602.48,1.76279813]
[1745481634378,1.25125164,604.25,602.49,1.76279813]
[1745481634581,1.25125164,604.25,602.5,1.45821376]
[1745481634781,1.25125164,604.25,602.51,2.81750827]
[1745481634979,1.25125164,604.25,602.52,1.76274854]
[1745481635176,1.25125164,604.25,602.53,1.76274854]
[1745481635380,1.25125164,604.25,602.54,2.81750827]
[1745481635580,1.25125164,604.25,602.55,1.76274854]
[1745481635778,1.25125164,604.25,602.56,1.76274854]
[1745481635982,1.25125164,604.25,602.57,2.81750827]
[1745481636185,1.25125164,604.25,602.58,1.76209331]
[1745481636379,1.25125164,604.22,602.59,1.76209331]
[1745481636582,1.25125164,604.22,602.6,2.81685304]
[1745481636880,1.25125164,604.22,602.61,1.76209331]
[1745481637076,1.25125164,604.22,602.62,1.76209331]
[1745481637278,1.25125164,604.22,602.63,1.76209331]
[1745481637480,1.25125164,604.22,602.64,1.76209331]
[1745481637683,1.25125164,604.22,602.65,1.76209331]
[1745481637877,1.25125164,604.22,602.66,1.76209331]
[1745481638076,1.25125164,604.22,602.67,1.76209331]
[1745481638278,1.25125164,604.22,602.68,1.76209331]
[1745481638478,1.25125164,604.22,602.69,1.45755853]
[1745481638683,1.25125164,604.22,602.7,1.76209331]
[1745481638876,1.25125164,604.22,602.71,2.81685304]
[1745481639077,1.25125164,604.22,602.72,1.76209331]
[1745481639278,1.25125164,604.22,602.73,2.81685304]
[1745481639485,1.25125164,604.42,602.74,1.76209331]
[1745481639683,1.25125164,604.42,602.75,1.76209331]
[1745481639986,1.25125164,604.42,602.76,2.81685304]
[1745481640178,1.25125164,604.42,602.77,1.76209331]
[1745481640381,1.25125164,604.42,602.78,2.81685304]
[1745481640579,1.25125164,604.42,602.79,1.76209331]
[1745481640782,1.25125164,604.42,602.8,2.81685304]
[1745481641080,1.25125164,604.42,602.81,2.81685304]
[1745481641278,1.25125164,604.42,602.82,1.76209331]
[1745481641482,1.25125164,604.42,602.83,2.81685304]
[1745481641684,1.25125164,604.42,602.84,1.76209331]
[1745481641987,1.25125164,604.42,602.85,1.76209331]
[1745481642181,1.25125164,604.42,602.86,1.76209331]
[1745481642387,1.25125164,604.42,602.87,1.45755853]
[1745481642588,1.25125164,604.43,602.88,1.7620723]
[1745481642785,1.25125164,604.43,602.89,1.7620723]
[1745481642985,1.25125164,604.43,602.9,1.7620723]
[1745481643185,1.25125164,604.43,602.91,1.15442514]
[1745481643482,1.25125164,604.43,602.92,0.84991137]
[1745481643681,1.25125164,604.43,602.93,1.9046711]
[1745481643887,1.25125164,604.43,602.93,1.05475973]
[1745481644382,1.25125164,604.43,602.94,1.05475973]
[1745481644689,1.25125164,604.49,602.94,1.05475973]
[1745481644889,1.25125164,604.49,602.95,1.05475973]
[1745481645490,1.25125164,604.49,602.96,1.05475973]
[1745481645991,1.25125164,604.49,602.37,1.0542296]
[1745481646291,1.25125164,604.49,602.38,2.80966579]
[1745481646491,1.25125164,604.49,602.39,1.75820012]
[1745481646687,1.25125164,604.49,602.4,1.75820012]
[1745481646988,1.25125164,604.49,602.41,2.50512132]
[1745481647190,1.25125164,604.49,602.42,1.75818395]
[1745481647390,1.25125164,604.49,602.43,2.80964962]
[1745481647587,1.25125164,604.49,602.44,1.75818395]
[1745481647893,1.25125164,604.53,602.45,1.75818395]
[1745481648092,1.25125164,604.53,602.46,2.80964962]
[1745481648391,1.25125164,604.53,602.47,2.80964962]
[1745481648592,1.25125164,604.53,602.48,1.75818395]
[1745481648787,1.25125164,604.53,602.49,1.75818395]
[1745481648988,1.25125164,604.53,602.5,1.75818395]
[1745481649191,1.25125164,604.53,602.51,2.80964962]
[1745481649392,1.25125164,604.53,602.52,1.75810567]
[1745481649592,1.25125164,604.53,602.53,1.75810567]
[1745481649793,1.25125164,604.53,602.54,1.75810567]
[1745481649987,1.25125164,604.53,602.55,2.80957134]
[1745481650189,1.25125164,604.53,602.56,1.75810567]
[1745481650391,1.25125164,604.53,602.57,1.75810567]
[1745481650586,1.25125164,604.53,602.58,1.75810567]
[1745481650793,1.25125164,604.53,602.59,1.75810567]
[1745481650988,1.25125164,604.68,602.6,1.75810567]
[1745481651193,1.25125164,604.68,602.61,1.75810567]
[1745481651393,1.25125164,604.68,602.62,1.75810567]
[1745481651695,1.25125164,604.68,602.63,1.75810567]
[1745481651889,1.25125164,604.68,602.64,1.75810567]
[1745481652086,1.25125164,604.68,602.65,1.75810567]
[1745481652286,1.25125164,604.68,602.66,2.80957134]
[1745481652489,1.25125164,604.68,602.67,1.75810567]
[1745481652693,1.25125164,604.68,602.68,1.75810567]
[1745481652893,1.25125164,604.68,602.69,1.75793638]
[1745481653093,1.25125164,604.65,602.7,1.75793638]
[1745481653294,1.25125164,604.65,602.71,1.75793638]
[1745481653495,1.25125164,604.65,602.72,2.80940205]
[1745481653689,1.25125164,604.65,602.73,1.75793638]
[1745481653889,1.25125164,604.65,602.74,2.80940205]
[1745481654093,1.25125164,604.65,602.75,1.75793638]
[1745481654293,1.25125164,604.65,602.76,2.80940205]
[1745481654595,1.25125164,604.65,602.77,1.75793638]
[1745481654796,1.25125164,604.65,602.78,1.45340808]
[1745481654997,1.25125164,604.65,602.79,1.75793605]
[1745481655196,1.25125164,604.65,602.8,1.45340808]
[1745481655392,1.25125164,604.65,602.81,1.75793605]
[1745481655598,1.25125164,604.61,602.82,2.80940172]
[1745481655798,1.25125164,604.61,602.83,1.75793605]
[1745481655999,1.25125164,604.61,602.84,2.80940172]
[1745481656195,1.25125164,604.61,602.85,1.75793605]
[1745481656492,1.25125164,604.61,602.86,1.45340808]
[1745481656697,1.25125164,604.61,602.87,2.80940129]
[1745481656899,1.25125164,604.61,602.88,1.15157731]
[1745481657096,1.25125164,604.61,602.89,0.84704977]
[1745481657297,1.25125164,604.61,602.9,1.89851544]
[1745481657496,1.25125164,604.61,602.9,1.05146567]
[1745481657893,1.25125164,604.32,602.6,1.05146567]
[1745481658096,1.25125164,604.32,602.61,1.75830683]
[1745481658295,1.25125164,604.32,602.6,1.05146567]
[1745481658296,1.25125164,604.32,602.62,1.75836219]
[1745481658496,1.25125164,604.32,602.63,1.75836219]
[1745481658699,1.25125164,604.32,602.64,2.80982786]
[1745481658899,1.25125164,604.32,602.65,1.75836219]
[1745481659204,1.25125164,604.32,602.66,1.75836219]
[1745481659398,1.25125164,604.32,602.67,2.80982786]
[1745481659604,1.25125164,604.32,602.68,1.75836219]
[1745481659799,1.25125164,604.32,602.69,2.80982786]
[1745481660105,1.25125164,604.32,602.7,1.75836219]
[1745481660402,1.25125164,604.32,602.71,1.75836219]
[1745481660603,1.25125164,604.32,602.72,1.75836219]
[1745481660805,1.25125164,604.45,602.73,1.75836219]
[1745481661003,1.25125164,604.45,602.74,2.80982786]
[1745481661204,1.25125164,604.45,602.75,1.75836219]
[1745481661500,1.25125164,604.45,602.76,2.80984399]
[1745481661699,0.28834084,604.44,602.77,1.75837832]
[1745481661905,0.28834084,604.44,602.78,1.75837832]
[1745481662121,0.28834084,604.44,602.79,1.75837832]
[1745481662402,0.28834084,604.44,602.8,2.80984399]
[1745481662601,0.28834084,604.44,602.81,1.75837832]
[1745481662799,0.28834084,604.44,602.82,1.75837832]
[1745481663001,0.28834084,604.44,602.83,1.45383986]
[1745481663203,0.28834084,604.44,602.84,1.45383986]
[1745481663406,0.28834084,604.44,602.85,1.45383986]
[1745481663706,1.25125164,604.45,602.86,2.50530553]
[1745481663909,1.25125164,604.45,602.87,1.45383986]
[1745481664108,2.12886564,605.07,602.86,1.05146567]
[1745481664109,1.25125164,604.68,602.88,1.45383986]
[1745481664403,0.28833367,604.44,602.89,1.45383986]
[1745481664607,0.28833367,604.44,602.9,1.45383986]
[1745481664803,1.25125164,604.68,602.91,1.45383986]
[1745481665104,1.25125164,604.68,602.92,1.45383986]
[1745481665308,1.25125164,604.68,602.93,1.89876988]
[1745481665609,0.28830023,604.67,602.94,0.84730421]
[1745481666110,0.28830023,604.67,602.95,1.05146567]
[1745481666310,0.28830023,604.67,602.96,0.84730421]
[1745481666711,1.25125164,604.68,602.96,0.84730421]
[1745481666712,1.25125164,604.66,602.96,0.84730421]
[1745481666909,1.25125164,604.66,602.97,1.05146567]
[1745481667111,1.53954709,604.66,602.97,1.05146567]
[1745481667410,1.53954709,604.66,602.7,1.05146567]
[1745481667606,1.53954709,604.66,602.71,1.75890984]
[1745481667808,1.53954709,604.66,602.72,2.81037551]
[1745481668008,1.53954709,604.66,602.73,1.75890984]
[1745481668205,1.53954709,604.66,602.74,2.81037551]
[1745481668409,1.53954709,604.66,602.75,1.75890984]
[1745481668611,1.53954709,604.66,602.76,2.81034321]
[1745481668810,1.53954709,604.66,602.77,1.75887754]
[1745481669011,1.53954709,604.66,602.78,1.75887754]
[1745481669211,1.53954709,604.66,602.79,2.81034321]
[1745481669411,1.53954709,604.66,602.8,1.45437777]
[1745481669611,1.53954709,604.66,602.81,1.45437777]
[1745481669809,1.25125164,604.66,602.82,1.45437777]
[1745481670014,1.25125164,604.64,602.83,1.45437777]
[1745481670209,1.25125164,604.64,602.84,2.81034026]
[1745481670414,1.25125164,604.64,602.85,1.75887459]
[1745481670713,1.25125164,604.64,602.86,1.45437777]
[1745481670914,1.25125164,604.64,602.87,2.81033381]
[1745481671113,1.25125164,604.64,602.88,1.75886814]
[1745481671315,1.25125164,604.64,602.89,2.81033381]
[1745481671615,1.25125164,604.64,602.9,2.81033381]
[1745481671815,1.25125164,604.64,602.91,1.45437777]
[1745481672016,1.25125164,604.64,602.92,2.8103087]
[1745481672217,1.25125164,604.64,602.93,1.75884303]
[1745481672417,1.25125164,604.64,602.94,1.75884303]
[1745481672619,1.25125164,604.54,602.95,1.45437777]
[1745481672813,1.25125164,604.54,602.96,1.45437777]
[1745481673014,1.25125164,604.54,602.97,2.50584344]
[1745481673211,1.25125164,604.54,602.98,1.45437777]
[1745481673415,1.25125164,604.54,602.99,2.50584344]
[1745481673613,1.25125164,604.54,603.0,0.84762189]
[1745481673818,1.25125164,604.54,603.01,0.84762189]
[1745481674014,1.25125164,604.54,603.02,0.84762189]
[1745481674214,1.25125164,604.54,603.03,0.84762189]
[1745481674419,1.25125164,604.54,603.04,0.84762189]
[1745481674619,1.25125164,604.54,603.02,1.05146567]
[1745481674819,1.25125164,604.54,603.05,1.05146567]
[1745481675220,1.25125164,604.64,603.05,1.05146567]
[1745481675519,1.25125164,604.64,602.78,1.05146567]
[1745481675720,1.25125164,604.64,602.79,1.75810317]
[1745481675916,0.28830023,604.63,602.8,1.35593013]
[1745481676121,0.28830023,604.63,602.81,1.75810051]
[1745481676314,0.28830023,604.63,602.82,2.80956618]
[1745481676516,0.28830023,604.63,602.83,1.75810051]
[1745481676722,0.28830023,604.63,602.84,2.80956618]
[1745481677021,0.28830023,604.63,602.85,1.75810051]
[1745481677220,0.28830023,604.63,602.86,1.75810051]
[1745481677419,0.28830023,604.63,602.87,2.80956618]
[1745481677616,0.28830023,604.63,602.88,1.75810051]
[1745481677820,0.28830023,604.63,602.89,1.75816503]
[1745481678021,0.28830023,604.63,602.9,2.8096307]
[1745481678217,0.28830023,604.63,602.91,1.75816503]
[1745481678520,1.25125164,604.61,602.92,1.75816503]
[1745481678721,1.25125164,604.61,602.93,2.8096307]
[1745481678922,1.25125164,604.61,602.94,1.45370057]
[1745481679122,1.25125164,604.61,602.95,1.45370057]
[1745481679319,1.25125164,604.61,602.96,1.45370057]
[1745481679621,1.25125164,604.61,602.94,1.05146567]
[1745481680124,1.25125164,604.61,602.97,0.84726519]